[Event "*** SCC Grand Prix: Titled Tuesday Blitz"]
[Site "Chess.com"]
[Date "2020.08.11"]
[Round "2"]
[White "Revnov"]
[Black "ChessicallyInclined"]
[Result "1-0"]
[WhiteElo "2756"]
[BlackElo "2501"]
[TimeControl "180+1"]
[EndTime "10:18:56 PDT"]
[Termination "Revnov won by resignation"]

1. e4 {[%clk 0:03:00.9]} 1... c5 {[%clk 0:02:58.5]} 2. Nf3 {[%clk 0:02:58.2]}
2... Nc6 {[%clk 0:02:58.8]} 3. Bb5 {[%clk 0:02:56.2]} 3... g6 {[%clk 0:02:58.7]}
4. c3 {[%clk 0:02:55.6]} 4... Bg7 {[%clk 0:02:54.9]} 5. O-O {[%clk 0:02:55.3]}
5... e5 {[%clk 0:02:53.8]} 6. a3 {[%clk 0:02:53.8]} 6... Nge7 {[%clk 0:02:51.5]}
7. b4 {[%clk 0:02:53.2]} 7... d6 {[%clk 0:02:48.9]} 8. Bb2 {[%clk 0:02:47.5]}
8... a6 {[%clk 0:02:47.4]} 9. Be2 {[%clk 0:02:44]} 9... O-O {[%clk 0:02:43]} 10.
d3 {[%clk 0:02:43.4]} 10... h6 {[%clk 0:02:39.8]} 11. Nbd2 {[%clk 0:02:42.7]}
11... Be6 {[%clk 0:02:39.3]} 12. Re1 {[%clk 0:02:37.7]} 12... Qc7 {[%clk
0:02:31.6]} 13. Rc1 {[%clk 0:02:35.6]} 13... Rad8 {[%clk 0:02:30.7]} 14. d4
{[%clk 0:02:34]} 14... exd4 {[%clk 0:02:29.7]} 15. cxd4 {[%clk 0:02:27.5]} 15...
cxd4 {[%clk 0:02:29.6]} 16. Bxd4 {[%clk 0:02:26.7]} 16... Bxd4 {[%clk 0:02:24]}
17. Nxd4 {[%clk 0:02:25.1]} 17... Qb6 {[%clk 0:02:23.7]} 18. Nxe6 {[%clk
0:02:22.6]} 18... fxe6 {[%clk 0:02:24.6]} 19. Rf1 {[%clk 0:02:16.3]} 19... Ne5
{[%clk 0:02:18]} 20. Nc4 {[%clk 0:02:13.5]} 20... Nxc4 {[%clk 0:02:18.3]} 21.
Bxc4 {[%clk 0:02:14.4]} 21... d5 {[%clk 0:02:18.5]} 22. exd5 {[%clk 0:02:14.1]}
22... exd5 {[%clk 0:02:19.4]} 23. Ba2 {[%clk 0:02:10.9]} 23... Kg7 {[%clk
0:02:10.5]} 24. Qd2 {[%clk 0:02:08.5]} 24... Rf6 {[%clk 0:01:59.8]} 25. Kh1
{[%clk 0:02:03.8]} 25... Rdf8 {[%clk 0:01:56.2]} 26. f3 {[%clk 0:01:59.2]} 26...
d4 {[%clk 0:01:55.3]} 27. Rc5 {[%clk 0:01:55.8]} 27... Nc6 {[%clk 0:01:44]} 28.
Bd5 {[%clk 0:01:49.2]} 28... Rd8 {[%clk 0:01:32.7]} 29. Be4 {[%clk 0:01:41.9]}
29... Ne7 {[%clk 0:01:21.6]} 30. Qd3 {[%clk 0:01:36.8]} 30... Rd7 {[%clk
0:01:14.5]} 31. Rfc1 {[%clk 0:01:35.4]} 31... Qd6 {[%clk 0:01:08.8]} 32. g3
{[%clk 0:01:34.4]} 32... h5 {[%clk 0:01:06.6]} 33. f4 {[%clk 0:01:32.4]} 33...
b6 {[%clk 0:00:52.6]} 34. Re5 {[%clk 0:01:29.6]} 34... b5 {[%clk 0:00:41.4]} 35.
Rcc5 {[%clk 0:01:28.6]} 35... h4 {[%clk 0:00:38.1]} 36. Kg2 {[%clk 0:01:28.1]}
36... hxg3 {[%clk 0:00:38.5]} 37. hxg3 {[%clk 0:01:29]} 37... Rd8 {[%clk
0:00:32.1]} 38. Rg5 {[%clk 0:01:22.6]} 38... Kf7 {[%clk 0:00:29.5]} 39. Qb3+
{[%clk 0:01:21.5]} 39... Qe6 {[%clk 0:00:25.2]} 40. Qd3 {[%clk 0:01:17.5]} 40...
Qa2+ {[%clk 0:00:22.3]} 41. Rc2 {[%clk 0:01:16.4]} 41... Qe6 {[%clk 0:00:22.3]}
42. Re2 {[%clk 0:01:15.8]} 42... Qd6 {[%clk 0:00:20.2]} 43. Re5 {[%clk
0:01:11.6]} 43... Kf8 {[%clk 0:00:14.3]} 44. Qf3 {[%clk 0:01:08]} 44... Rc8
{[%clk 0:00:14.1]} 45. Rd2 {[%clk 0:01:07.6]} 45... Rc3 {[%clk 0:00:13.6]} 46.
Qf2 {[%clk 0:01:02.8]} 46... Nc6 {[%clk 0:00:10.7]} 47. Rd5 {[%clk 0:01:00.9]}
47... Qe6 {[%clk 0:00:11.3]} 48. Bf3 {[%clk 0:01:00.2]} 48... Re3 {[%clk
0:00:09.6]} 49. Rc5 {[%clk 0:00:56.8]} 49... Ne7 {[%clk 0:00:09]} 50. Rxd4
{[%clk 0:00:56.2]} 50... Nf5 {[%clk 0:00:09.5]} 51. Rd8+ {[%clk 0:00:53.5]}
51... Kg7 {[%clk 0:00:09.8]} 52. Rc7+ {[%clk 0:00:53.5]} 52... Rf7 {[%clk
0:00:09.4]} 53. Rxf7+ {[%clk 0:00:51.9]} 53... Qxf7 {[%clk 0:00:09.3]} 54. g4
{[%clk 0:00:50.7]} 54... Rxf3 {[%clk 0:00:08.4]} 55. Qb2+ {[%clk 0:00:42.7]} 1-0

[Event "*** SCC Grand Prix: Titled Tuesday Blitz"]
[Site "Chess.com"]
[Date "2020.08.11"]
[Round "2"]
[White "SzMM19"]
[Black "attack2mateU"]
[Result "0-1"]
[WhiteElo "2482"]
[BlackElo "2721"]
[TimeControl "180+1"]
[EndTime "10:18:56 PDT"]
[Termination "attack2mateU won on time"]

1. e4 {[%clk 0:03:00.9]} 1... c5 {[%clk 0:02:59.8]} 2. c4 {[%clk 0:03:00.3]}
2... Nc6 {[%clk 0:02:59.4]} 3. Nc3 {[%clk 0:03:00.4]} 3... g6 {[%clk 0:02:58.9]}
4. g3 {[%clk 0:03:01.3]} 4... Bg7 {[%clk 0:02:59.2]} 5. Bg2 {[%clk 0:03:02.2]}
5... h5 {[%clk 0:02:56.4]} 6. h3 {[%clk 0:03:01.9]} 6... d6 {[%clk 0:02:54.1]}
7. Nge2 {[%clk 0:03:01.7]} 7... h4 {[%clk 0:02:49.3]} 8. g4 {[%clk 0:03:01.6]}
8... Nd4 {[%clk 0:02:49.2]} 9. d3 {[%clk 0:03:01.5]} 9... e6 {[%clk 0:02:47.6]}
10. Nxd4 {[%clk 0:03:01.5]} 10... cxd4 {[%clk 0:02:47.4]} 11. Ne2 {[%clk
0:03:02.4]} 11... g5 {[%clk 0:02:39.5]} 12. f4 {[%clk 0:02:56.4]} 12... gxf4
{[%clk 0:02:38.8]} 13. Bxf4 {[%clk 0:02:55.5]} 13... Ne7 {[%clk 0:02:35.1]} 14.
O-O {[%clk 0:02:54.5]} 14... Ng6 {[%clk 0:02:35.7]} 15. Bd2 {[%clk 0:02:53]}
15... Be5 {[%clk 0:02:29.2]} 16. Rb1 {[%clk 0:02:46.1]} 16... Bd7 {[%clk
0:02:20.2]} 17. Kh1 {[%clk 0:02:46.1]} 17... b5 {[%clk 0:02:16.4]} 18. b3 {[%clk
0:02:45.5]} 18... a5 {[%clk 0:02:15.8]} 19. Ng1 {[%clk 0:02:40]} 19... Qb6
{[%clk 0:01:59.1]} 20. Nf3 {[%clk 0:02:39.4]} 20... Bf4 {[%clk 0:01:58.6]} 21.
Bxf4 {[%clk 0:01:08.7]} 21... Nxf4 {[%clk 0:01:59.5]} 22. Ne1 {[%clk 0:01:00.5]}
22... e5 {[%clk 0:01:52.6]} 23. Rxf4 {[%clk 0:00:58.9]} 23... exf4 {[%clk
0:01:53.5]} 24. Qf3 {[%clk 0:00:54.6]} 24... Qc5 {[%clk 0:01:33.9]} 25. Qxf4
{[%clk 0:00:53.1]} 25... Qe5 {[%clk 0:01:33.1]} 26. Qf2 {[%clk 0:00:53.1]} 26...
Rb8 {[%clk 0:01:18.1]} 27. Nf3 {[%clk 0:00:52.6]} 27... Qc5 {[%clk 0:01:14.6]}
28. Rf1 {[%clk 0:00:40.7]} 28... bxc4 {[%clk 0:01:10.5]} 29. bxc4 {[%clk
0:00:41.6]} 29... Bxg4 {[%clk 0:00:51.5]} 30. Nxd4 {[%clk 0:00:20.2]} 30... Be6
{[%clk 0:00:36.9]} 31. Qf6 {[%clk 0:00:13.3]} 31... Qe5 {[%clk 0:00:37.1]} 32.
Nxe6 {[%clk 0:00:04.2]} 32... Qxf6 {[%clk 0:00:27.6]} 33. Nc7+ {[%clk
0:00:03.8]} 33... Kd8 {[%clk 0:00:26]} 34. Rxf6 {[%clk 0:00:03.3]} 34... Rb1+
{[%clk 0:00:22.4]} 35. Kh2 {[%clk 0:00:03.1]} 35... Kxc7 {[%clk 0:00:22.6]} 36.
Rxf7+ {[%clk 0:00:03.5]} 36... Kb6 {[%clk 0:00:22.4]} 37. Rf6 {[%clk 0:00:03.6]}
37... Kc5 {[%clk 0:00:22.3]} 38. Rf5+ {[%clk 0:00:03.9]} 38... Kd4 {[%clk
0:00:22.6]} 39. Rd5+ {[%clk 0:00:03.9]} 39... Ke3 {[%clk 0:00:23]} 40. Rxd6
{[%clk 0:00:02.7]} 40... Rg8 {[%clk 0:00:23.2]} 41. e5 {[%clk 0:00:02]} 41...
Rb2 {[%clk 0:00:23]} 42. e6 {[%clk 0:00:02.2]} 42... Rbxg2+ {[%clk 0:00:23]} 0-1

[Event "*** SCC Grand Prix: Titled Tuesday Blitz"]
[Site "Chess.com"]
[Date "2020.08.11"]
[Round "2"]
[White "TurboSteen"]
[Black "ExtremeLearner"]
[Result "1-0"]
[WhiteElo "2004"]
[BlackElo "2342"]
[TimeControl "180+1"]
[EndTime "10:18:56 PDT"]
[Termination "TurboSteen won by checkmate"]

1. e4 {[%clk 0:02:57.7]} 1... c6 {[%clk 0:02:46]} 2. c4 {[%clk 0:02:55.5]} 2...
d5 {[%clk 0:02:41.6]} 3. cxd5 {[%clk 0:02:55]} 3... cxd5 {[%clk 0:02:42.5]} 4.
exd5 {[%clk 0:02:54.7]} 4... Nf6 {[%clk 0:02:41.1]} 5. Nc3 {[%clk 0:02:55.2]}
5... g6 {[%clk 0:02:39.2]} 6. Bc4 {[%clk 0:02:53.2]} 6... Bg7 {[%clk 0:02:38.9]}
7. Nge2 {[%clk 0:02:51.4]} 7... O-O {[%clk 0:02:39]} 8. d3 {[%clk 0:02:48.9]}
8... Nbd7 {[%clk 0:02:33.8]} 9. O-O {[%clk 0:02:48.2]} 9... Nb6 {[%clk
0:02:33.7]} 10. Qb3 {[%clk 0:02:46.8]} 10... Nfd7 {[%clk 0:02:28.6]} 11. Bf4
{[%clk 0:02:42]} 11... Nc5 {[%clk 0:02:24.2]} 12. Qa3 {[%clk 0:02:38.8]} 12...
Ncd7 {[%clk 0:02:16.6]} 13. Qb3 {[%clk 0:02:29.3]} 13... h6 {[%clk 0:02:15.8]}
14. h3 {[%clk 0:02:23.3]} 14... Kh7 {[%clk 0:02:13.5]} 15. d6 {[%clk 0:02:20]}
15... e5 {[%clk 0:02:04]} 16. Bh2 {[%clk 0:02:18.3]} 16... Nc5 {[%clk
0:01:50.1]} 17. Qa3 {[%clk 0:02:15.1]} 17... Ne6 {[%clk 0:01:43.2]} 18. f4
{[%clk 0:02:06.7]} 18... exf4 {[%clk 0:01:27.8]} 19. Nxf4 {[%clk 0:02:04.6]}
19... Nxf4 {[%clk 0:01:20.7]} 20. Bxf4 {[%clk 0:02:02.2]} 20... Nxc4 {[%clk
0:01:13.2]} 21. dxc4 {[%clk 0:01:59.5]} 21... Be6 {[%clk 0:01:13.3]} 22. c5
{[%clk 0:01:56.9]} 22... Bd4+ {[%clk 0:01:11.7]} 23. Kh2 {[%clk 0:01:52.8]}
23... Rc8 {[%clk 0:01:08.7]} 24. Ne4 {[%clk 0:01:50.6]} 24... f5 {[%clk
0:01:02.7]} 25. Rad1 {[%clk 0:01:39.8]} 25... fxe4 {[%clk 0:00:40.1]} 26. Rxd4
{[%clk 0:01:36.5]} 26... g5 {[%clk 0:00:38.1]} 27. Rxe4 {[%clk 0:01:29.9]} 27...
Qd7 {[%clk 0:00:33.9]} 28. Qd3 {[%clk 0:01:21]} 28... Kg8 {[%clk 0:00:22.7]} 29.
Be5 {[%clk 0:01:13.3]} 29... Rxf1 {[%clk 0:00:14.3]} 30. Qxf1 {[%clk 0:01:11]}
30... Rf8 {[%clk 0:00:15.2]} 31. Qd3 {[%clk 0:01:03.4]} 31... Bf5 {[%clk
0:00:14.3]} 32. Qd5+ {[%clk 0:01:01.7]} 32... Be6 {[%clk 0:00:14.7]} 33. Qd4
{[%clk 0:00:58]} 33... Bxa2 {[%clk 0:00:10.6]} 34. Bg3 {[%clk 0:00:49.6]} 34...
Be6 {[%clk 0:00:09.1]} 35. Qe5 {[%clk 0:00:47.3]} 35... Re8 {[%clk 0:00:08.3]}
36. Qf6 {[%clk 0:00:44]} 36... Kh7 {[%clk 0:00:06.2]} 37. b4 {[%clk 0:00:36.9]}
37... a5 {[%clk 0:00:06.2]} 38. b5 {[%clk 0:00:35.8]} 38... a4 {[%clk
0:00:05.2]} 39. c6 {[%clk 0:00:35.1]} 39... bxc6 {[%clk 0:00:06.1]} 40. bxc6
{[%clk 0:00:34.1]} 40... Qxc6 {[%clk 0:00:04.4]} 41. Rxe6 {[%clk 0:00:32.7]}
41... a3 {[%clk 0:00:04.3]} 42. Qf7+ {[%clk 0:00:29.9]} 42... Kh8 {[%clk
0:00:02.9]} 43. Be5# {[%clk 0:00:28.7]} 1-0

[Event "*** SCC Grand Prix: Titled Tuesday Blitz"]
[Site "Chess.com"]
[Date "2020.08.11"]
[Round "2"]
[White "TimofeevAr"]
[Black "Borsuk_Konstantin"]
[Result "1-0"]
[WhiteElo "2855"]
[BlackElo "2564"]
[TimeControl "180+1"]
[EndTime "10:18:57 PDT"]
[Termination "TimofeevAr won on time"]

1. e4 {[%clk 0:03:00.9]} 1... e6 {[%clk 0:02:58.6]} 2. d4 {[%clk 0:03:00.3]}
2... d5 {[%clk 0:02:59.2]} 3. Nd2 {[%clk 0:03:00.8]} 3... Nf6 {[%clk 0:02:59]}
4. e5 {[%clk 0:02:59.2]} 4... Nfd7 {[%clk 0:02:59.5]} 5. Bd3 {[%clk 0:02:59.1]}
5... c5 {[%clk 0:03:00]} 6. c3 {[%clk 0:02:59.6]} 6... Nc6 {[%clk 0:03:00.6]} 7.
Ne2 {[%clk 0:02:58.9]} 7... b6 {[%clk 0:03:00.2]} 8. a3 {[%clk 0:02:49.9]} 8...
cxd4 {[%clk 0:02:56.1]} 9. cxd4 {[%clk 0:02:49.5]} 9... a5 {[%clk 0:02:56.7]}
10. O-O {[%clk 0:02:48.8]} 10... Ba6 {[%clk 0:02:56.6]} 11. Bxa6 {[%clk
0:02:46.5]} 11... Rxa6 {[%clk 0:02:56.1]} 12. f4 {[%clk 0:02:45]} 12... f5
{[%clk 0:02:51.4]} 13. exf6 {[%clk 0:02:40.7]} 13... Nxf6 {[%clk 0:02:50.3]} 14.
f5 {[%clk 0:02:28.7]} 14... e5 {[%clk 0:02:46.7]} 15. Nf3 {[%clk 0:02:10.5]}
15... e4 {[%clk 0:02:39.8]} 16. Ne5 {[%clk 0:02:09.3]} 16... b5 {[%clk
0:02:30.2]} 17. Bg5 {[%clk 0:02:06.7]} 17... Bd6 {[%clk 0:02:17.7]} 18. Nf4
{[%clk 0:01:53.2]} 18... Nxe5 {[%clk 0:02:08.5]} 19. dxe5 {[%clk 0:01:53.1]}
19... Bxe5 {[%clk 0:02:08.3]} 20. Ne6 {[%clk 0:01:53.4]} 20... Rxe6 {[%clk
0:01:34.8]} 21. fxe6 {[%clk 0:01:53.1]} 21... Qb6+ {[%clk 0:01:13.9]} 22. Kh1
{[%clk 0:01:52.3]} 22... Qxe6 {[%clk 0:01:11]} 23. Bxf6 {[%clk 0:01:36.8]} 23...
gxf6 {[%clk 0:01:00]} 24. Qh5+ {[%clk 0:01:36.3]} 24... Ke7 {[%clk 0:00:54.9]}
25. Rac1 {[%clk 0:01:33.6]} 25... Qf7 {[%clk 0:00:36.2]} 26. Qxe5+ {[%clk
0:01:29.7]} 26... fxe5 {[%clk 0:00:31.6]} 27. Rc7+ {[%clk 0:01:29.6]} 27... Kd6
{[%clk 0:00:27.4]} 28. Rfxf7 {[%clk 0:01:26.2]} 28... e3 {[%clk 0:00:25.4]} 29.
Kg1 {[%clk 0:01:22.6]} 29... d4 {[%clk 0:00:22.6]} 30. Rcd7+ {[%clk 0:00:52.4]}
30... Ke6 {[%clk 0:00:19.9]} 31. Kf1 {[%clk 0:00:48.5]} 31... Rc8 {[%clk
0:00:18.9]} 32. Rc7 {[%clk 0:00:48.1]} 32... Rb8 {[%clk 0:00:06.9]} 33. Ke2
{[%clk 0:00:46.4]} 33... b4 {[%clk 0:00:04.4]} 34. a4 {[%clk 0:00:46]} 34... Kd5
{[%clk 0:00:04.1]} 35. Rxh7 {[%clk 0:00:44.7]} 35... Rf8 {[%clk 0:00:02.1]} 36.
Rhf7 {[%clk 0:00:41.5]} 36... Rg8 {[%clk 0:00:02.7]} 37. g3 {[%clk 0:00:41]}
37... Ke4 {[%clk 0:00:02.8]} 38. Rc4 {[%clk 0:00:36.7]} 38... Rd8 {[%clk
0:00:02.6]} 39. b3 {[%clk 0:00:29]} 39... Rh8 {[%clk 0:00:01.7]} 40. h4 {[%clk
0:00:27.1]} 40... Rg8 {[%clk 0:00:02.4]} 41. Rf3 {[%clk 0:00:27.4]} 41... Rg7
{[%clk 0:00:01.4]} 42. Rxe3+ {[%clk 0:00:27.4]} 1-0

[Event "*** SCC Grand Prix: Titled Tuesday Blitz"]
[Site "Chess.com"]
[Date "2020.08.11"]
[Round "2"]
[White "Danfii"]
[Black "FMOlexandrProhorov"]
[Result "0-1"]
[WhiteElo "2366"]
[BlackElo "2118"]
[TimeControl "180+1"]
[EndTime "10:18:58 PDT"]
[Termination "FMOlexandrProhorov won by resignation"]

1. e4 {[%clk 0:03:00.9]} 1... c5 {[%clk 0:02:54.5]} 2. Nf3 {[%clk 0:03:00.5]}
2... e6 {[%clk 0:02:53.2]} 3. d4 {[%clk 0:03:00.8]} 3... cxd4 {[%clk 0:02:51.6]}
4. Nxd4 {[%clk 0:03:01.7]} 4... a6 {[%clk 0:02:52.2]} 5. Bd3 {[%clk 0:03:01.6]}
5... Ne7 {[%clk 0:02:45.3]} 6. O-O {[%clk 0:03:00.5]} 6... Nbc6 {[%clk
0:02:43.9]} 7. Nxc6 {[%clk 0:02:50.8]} 7... Nxc6 {[%clk 0:02:41.8]} 8. Nd2
{[%clk 0:02:47.2]} 8... d5 {[%clk 0:02:26.5]} 9. Re1 {[%clk 0:02:40.5]} 9... Be7
{[%clk 0:02:25.7]} 10. exd5 {[%clk 0:02:27.3]} 10... Qxd5 {[%clk 0:02:23.8]} 11.
Be4 {[%clk 0:02:21.1]} 11... Qd8 {[%clk 0:02:18.5]} 12. c3 {[%clk 0:02:04.6]}
12... O-O {[%clk 0:02:13.3]} 13. Qf3 {[%clk 0:02:02.3]} 13... Qc7 {[%clk
0:02:09.3]} 14. Nb3 {[%clk 0:01:50]} 14... Bd7 {[%clk 0:02:06.3]} 15. Bf4 {[%clk
0:01:49.4]} 15... e5 {[%clk 0:02:00.1]} 16. Bxc6 {[%clk 0:01:20]} 16... Bxc6
{[%clk 0:01:56.3]} 17. Bxe5 {[%clk 0:01:20.1]} 17... Bd6 {[%clk 0:01:53.5]} 18.
Bxd6 {[%clk 0:01:18]} 18... Qxd6 {[%clk 0:01:53.9]} 19. Qg3 {[%clk 0:01:18]}
19... Qf6 {[%clk 0:01:48.1]} 20. Nd4 {[%clk 0:01:16.8]} 20... Bd5 {[%clk
0:01:43.4]} 21. Qe5 {[%clk 0:01:15.1]} 21... Qxe5 {[%clk 0:01:38.5]} 22. Rxe5
{[%clk 0:01:16]} 22... Rad8 {[%clk 0:01:37.8]} 23. a3 {[%clk 0:01:16.1]} 23...
f6 {[%clk 0:01:23.2]} 24. Re3 {[%clk 0:01:15.6]} 24... Kf7 {[%clk 0:01:21.3]}
25. Rae1 {[%clk 0:01:15.2]} 25... Rd7 {[%clk 0:01:21.4]} 26. Nf5 {[%clk
0:01:03.7]} 26... Rfd8 {[%clk 0:01:06.5]} 27. h4 {[%clk 0:00:42.4]} 27... g6
{[%clk 0:01:02]} 28. Nd4 {[%clk 0:00:38.8]} 28... h5 {[%clk 0:00:52.9]} 29. f3
{[%clk 0:00:38.9]} 29... Rc8 {[%clk 0:00:49.3]} 30. Kf2 {[%clk 0:00:38.8]} 30...
Rcd8 {[%clk 0:00:47]} 31. g4 {[%clk 0:00:38.8]} 31... hxg4 {[%clk 0:00:42.7]}
32. fxg4 {[%clk 0:00:39.7]} 32... Rh8 {[%clk 0:00:41.8]} 33. Kg3 {[%clk
0:00:39.6]} 33... b5 {[%clk 0:00:37.2]} 34. Rf1 {[%clk 0:00:35.8]} 34... Kg7
{[%clk 0:00:31.7]} 35. Re2 {[%clk 0:00:24]} 35... Bc4 {[%clk 0:00:31.3]} 36.
Ref2 {[%clk 0:00:16.9]} 36... Bxf1 {[%clk 0:00:30.2]} 37. Rxf1 {[%clk
0:00:17.8]} 37... Re8 {[%clk 0:00:28.8]} 38. Rf2 {[%clk 0:00:16.5]} 38... Re3+
{[%clk 0:00:26.4]} 39. Kf4 {[%clk 0:00:16.6]} 39... Rde7 {[%clk 0:00:23.6]} 0-1

[Event "*** SCC Grand Prix: Titled Tuesday Blitz"]
[Site "Chess.com"]
[Date "2020.08.11"]
[Round "2"]
[White "IngOscarArdila"]
[Black "Nikolaj_6"]
[Result "1-0"]
[WhiteElo "2205"]
[BlackElo "2613"]
[TimeControl "180+1"]
[EndTime "10:18:59 PDT"]
[Termination "IngOscarArdila won by resignation"]

1. d4 {[%clk 0:03:00.9]} 1... Nf6 {[%clk 0:02:59.7]} 2. c4 {[%clk 0:03:00.8]}
2... e6 {[%clk 0:03:00]} 3. Nc3 {[%clk 0:03:00.7]} 3... Bb4 {[%clk 0:02:59.9]}
4. Bd2 {[%clk 0:03:01.3]} 4... b6 {[%clk 0:02:57.6]} 5. e3 {[%clk 0:03:00.5]}
5... O-O {[%clk 0:02:56.9]} 6. Bd3 {[%clk 0:02:59.1]} 6... Bb7 {[%clk
0:02:56.8]} 7. f3 {[%clk 0:02:59.4]} 7... d5 {[%clk 0:02:56]} 8. cxd5 {[%clk
0:02:58.9]} 8... exd5 {[%clk 0:02:55.6]} 9. Nge2 {[%clk 0:02:59.2]} 9... c5
{[%clk 0:02:54.4]} 10. O-O {[%clk 0:02:57.9]} 10... Re8 {[%clk 0:02:51]} 11. a3
{[%clk 0:02:55.5]} 11... Bxc3 {[%clk 0:02:49.7]} 12. bxc3 {[%clk 0:02:55.3]}
12... Nc6 {[%clk 0:02:45.7]} 13. Re1 {[%clk 0:02:53.2]} 13... cxd4 {[%clk
0:02:45]} 14. exd4 {[%clk 0:02:51.9]} 14... h6 {[%clk 0:02:41.3]} 15. Qc2 {[%clk
0:02:47.9]} 15... Rc8 {[%clk 0:02:39.8]} 16. Bf5 {[%clk 0:02:47.9]} 16... Rc7
{[%clk 0:02:37.5]} 17. Bf4 {[%clk 0:02:47.3]} 17... Rce7 {[%clk 0:02:37.3]} 18.
Bg3 {[%clk 0:02:27.8]} 18... Ba6 {[%clk 0:02:25.1]} 19. Nf4 {[%clk 0:02:26.5]}
19... Rxe1+ {[%clk 0:02:17.5]} 20. Rxe1 {[%clk 0:02:27.4]} 20... Rxe1+ {[%clk
0:02:16.9]} 21. Bxe1 {[%clk 0:02:27]} 21... Qe7 {[%clk 0:02:17]} 22. Bg3 {[%clk
0:02:21.6]} 22... Qe3+ {[%clk 0:02:07.1]} 23. Kh1 {[%clk 0:02:17.6]} 23... g5
{[%clk 0:01:55.9]} 24. Nh3 {[%clk 0:01:35.5]} 24... Ne7 {[%clk 0:01:31.2]} 25.
Be5 {[%clk 0:01:29.2]} 25... Qe1+ {[%clk 0:01:21.7]} 26. Ng1 {[%clk 0:01:29.1]}
26... Nh5 {[%clk 0:00:59.2]} 27. Bh7+ {[%clk 0:01:28.8]} 27... Kf8 {[%clk
0:00:58.1]} 28. Bd3 {[%clk 0:01:28.7]} 28... Bxd3 {[%clk 0:00:53.5]} 29. Qxd3
{[%clk 0:01:28.2]} 29... Ng6 {[%clk 0:00:50.1]} 30. Bd6+ {[%clk 0:01:19.8]}
30... Kg7 {[%clk 0:00:49.2]} 31. Qf5 {[%clk 0:01:16.6]} 31... Qe6 {[%clk
0:00:34.4]} 32. Qxe6 {[%clk 0:01:09.3]} 32... fxe6 {[%clk 0:00:35.3]} 33. Bb8
{[%clk 0:01:09.4]} 33... a6 {[%clk 0:00:35]} 34. Bc7 {[%clk 0:01:08.5]} 34... b5
{[%clk 0:00:35.2]} 35. g3 {[%clk 0:01:07.6]} 35... Nf6 {[%clk 0:00:32.7]} 36.
Kg2 {[%clk 0:01:07.1]} 36... Ne8 {[%clk 0:00:32.9]} 37. Bb8 {[%clk 0:01:04.8]}
37... Ne7 {[%clk 0:00:31.9]} 38. Be5+ {[%clk 0:01:03.1]} 38... Kf7 {[%clk
0:00:31.7]} 39. Ne2 {[%clk 0:01:02.9]} 39... Nc6 {[%clk 0:00:32.1]} 40. f4
{[%clk 0:01:01.1]} 40... g4 {[%clk 0:00:30.6]} 41. h3 {[%clk 0:00:59.9]} 41...
h5 {[%clk 0:00:30.8]} 42. hxg4 {[%clk 0:00:59]} 42... hxg4 {[%clk 0:00:31.7]}
43. Nc1 {[%clk 0:00:58.4]} 43... Kg6 {[%clk 0:00:31.2]} 44. Nd3 {[%clk 0:00:54]}
44... Kf5 {[%clk 0:00:30.8]} 45. Nc5 {[%clk 0:00:52.5]} 45... a5 {[%clk
0:00:27.3]} 46. a4 {[%clk 0:00:36.9]} 46... b4 {[%clk 0:00:25.5]} 47. cxb4
{[%clk 0:00:37.1]} 47... axb4 {[%clk 0:00:25.9]} 48. Kf2 {[%clk 0:00:37.1]}
48... Nxe5 {[%clk 0:00:20]} 49. fxe5 {[%clk 0:00:36.8]} 49... Nc7 {[%clk
0:00:17.6]} 50. Ke3 {[%clk 0:00:34]} 50... b3 {[%clk 0:00:17.7]} 51. Nxb3 {[%clk
0:00:33]} 51... Na6 {[%clk 0:00:15.8]} 52. Nc5 {[%clk 0:00:31.3]} 52... Nb4
{[%clk 0:00:15.3]} 53. a5 {[%clk 0:00:30.6]} 1-0

[Event "*** SCC Grand Prix: Titled Tuesday Blitz"]
[Site "Chess.com"]
[Date "2020.08.11"]
[Round "2"]
[White "ChessAurochs"]
[Black "kobemagic"]
[Result "1-0"]
[WhiteElo "2547"]
[BlackElo "2274"]
[TimeControl "180+1"]
[EndTime "10:18:59 PDT"]
[Termination "ChessAurochs won on time"]

1. e4 {[%clk 0:03:00.8]} 1... g6 {[%clk 0:02:55.9]} 2. d4 {[%clk 0:03:00.3]}
2... Bg7 {[%clk 0:02:56.4]} 3. c3 {[%clk 0:02:59.4]} 3... c6 {[%clk 0:02:57]} 4.
Nf3 {[%clk 0:02:58.1]} 4... d5 {[%clk 0:02:57.6]} 5. e5 {[%clk 0:02:55.8]} 5...
Bg4 {[%clk 0:02:57.1]} 6. Nbd2 {[%clk 0:02:55.4]} 6... Nh6 {[%clk 0:02:54.6]} 7.
h3 {[%clk 0:02:55.6]} 7... Bxf3 {[%clk 0:02:54]} 8. Nxf3 {[%clk 0:02:56.5]} 8...
e6 {[%clk 0:02:53.5]} 9. Bd3 {[%clk 0:02:55.4]} 9... Nd7 {[%clk 0:02:52.5]} 10.
O-O {[%clk 0:02:55.4]} 10... c5 {[%clk 0:02:53.1]} 11. a4 {[%clk 0:02:39.4]}
11... O-O {[%clk 0:02:45.3]} 12. a5 {[%clk 0:02:33]} 12... cxd4 {[%clk
0:02:40.5]} 13. cxd4 {[%clk 0:02:32.3]} 13... f6 {[%clk 0:02:41.4]} 14. exf6
{[%clk 0:02:28.9]} 14... Nxf6 {[%clk 0:02:41]} 15. Re1 {[%clk 0:02:27.8]} 15...
Qd6 {[%clk 0:02:29.2]} 16. a6 {[%clk 0:02:15.5]} 16... b6 {[%clk 0:02:27.5]} 17.
b3 {[%clk 0:02:15.5]} 17... Rfe8 {[%clk 0:02:20]} 18. Ba3 {[%clk 0:02:09.7]}
18... Qf4 {[%clk 0:02:13.9]} 19. g3 {[%clk 0:02:03.6]} 19... Qc7 {[%clk
0:02:07.8]} 20. Rc1 {[%clk 0:01:59.9]} 20... Qd8 {[%clk 0:02:05.8]} 21. Ne5
{[%clk 0:01:37.3]} 21... Ne4 {[%clk 0:02:00]} 22. Bb5 {[%clk 0:01:09.3]} 22...
Nf5 {[%clk 0:01:50.8]} 23. Bxe8 {[%clk 0:00:59.4]} 23... Qxe8 {[%clk 0:01:51.7]}
24. Qd3 {[%clk 0:00:48.6]} 24... h5 {[%clk 0:01:37.8]} 25. Rc7 {[%clk
0:00:44.3]} 25... Qd8 {[%clk 0:01:28.9]} 26. Rec1 {[%clk 0:00:42.7]} 26... Qg5
{[%clk 0:01:26.2]} 27. Nf3 {[%clk 0:00:33.3]} 27... Qf6 {[%clk 0:01:20.1]} 28.
Bb2 {[%clk 0:00:23.7]} 28... Rf8 {[%clk 0:01:17.8]} 29. Rc8 {[%clk 0:00:23.9]}
29... Nfd6 {[%clk 0:01:10.8]} 30. Rxf8+ {[%clk 0:00:23.1]} 30... Bxf8 {[%clk
0:01:10.9]} 31. Ba3 {[%clk 0:00:22.2]} 31... Qf5 {[%clk 0:01:00.8]} 32. Bxd6
{[%clk 0:00:21.9]} 32... Bxd6 {[%clk 0:00:58.2]} 33. Kg2 {[%clk 0:00:22.2]}
33... Kg7 {[%clk 0:00:49.7]} 34. Rc8 {[%clk 0:00:20.7]} 34... Qf7 {[%clk
0:00:30.2]} 35. Qc2 {[%clk 0:00:20.1]} 35... Qd7 {[%clk 0:00:25.1]} 36. Qc6
{[%clk 0:00:19.8]} 36... Qf7 {[%clk 0:00:21.9]} 37. Qb7 {[%clk 0:00:18.9]} 37...
Kf6 {[%clk 0:00:02.2]} 38. Qxf7+ {[%clk 0:00:17.8]} 38... Kxf7 {[%clk
0:00:03.1]} 39. Ra8 {[%clk 0:00:18.4]} 1-0